fUST/lending_fUST_20240119
["ID","MTS","AMOUNT","RATE_DAILY","PERIOD"]
[312115325,1705642244722,-500.0,0.00032876,2]
[312115327,1705642244731,-182.80947998,0.00032876,2]
[312115329,1705642244740,-500.0,0.00032876,7]
[312115331,1705642244750,-500.0,0.00032876,2]
[312115333,1705642244759,-500.0,0.00032876,2]
[312115334,1705642244768,-500.0,0.00032876,2]
[312115335,1705642244777,-500.0,0.00032876,2]
[312115337,1705642244790,-180.35298361,0.00032876,2]
[312115339,1705642244800,-500.0,0.00032876,2]
[312115341,1705642244810,-500.71712244,0.00032876,2]
[312115342,1705642244820,-500.0,0.00032876,2]
[312115343,1705642244828,-500.0,0.00032876,2]
[312115345,1705642244838,-501.88135404,0.00032876,2]
[312115347,1705642244847,-500.0,0.00032876,2]
[312115349,1705642244856,-500.0,0.00032876,2]
[312115350,1705642244865,-502.42556649,0.00032876,2]
[312115352,1705642244875,-431.15991902,0.00032876,2]
[312115353,1705642244884,-500.13620846,0.00032876,2]
[312115355,1705642244893,-506.35665942,0.00032876,2]
[312115357,1705642244903,-500.0,0.00032876,2]
[312115358,1705642244912,-500.0,0.00032876,2]
[312115359,1705642244921,-500.0,0.00032876,2]
[312115360,1705642244930,-500.0,0.00032876,2]
[312115361,1705642244939,-500.0,0.00032876,2]
[312115362,1705642244948,-574.52467871,0.00032876,2]
[312115363,1705642244957,-627.68,0.00032876,2]
[312115364,1705642244966,-500.0,0.00032876,2]
[312115365,1705642244974,-500.0,0.00032876,2]
[312115366,1705642244983,-330.86630192,0.00032876,2]
[312115367,1705642244992,-500.0,0.00032876,2]
[312115368,1705642245001,-502.25678309,0.00032876,2]
[312115369,1705642245011,-500.0,0.00032876,2]
[312115370,1705642245020,-500.0,0.00032876,2]
[312115371,1705642245029,-500.78157779,0.00032876,2]
[312115372,1705642245037,-1288.13,0.00032876,2]
[312115373,1705642245046,-500.0,0.00032876,2]
[312115374,1705642245055,-575.27,0.00032876,2]
[312115375,1705642245065,-575.27,0.00032876,2]
[312115376,1705642245074,-575.27,0.00032876,2]
[312115377,1705642245083,-575.27,0.00032876,2]
[312115378,1705642245091,-575.27,0.00032876,2]
[312115379,1705642245100,-575.27,0.00032876,2]
[312115380,1705642245109,-575.27,0.00032876,2]
[312115381,1705642245118,-575.27,0.00032876,2]
[312115382,1705642245127,-575.27,0.00032876,2]
[312115384,1705642245136,-575.27,0.00032876,2]
[312115386,1705642245145,-575.27,0.00032876,2]
[312115387,1705642245155,-575.27,0.00032876,2]
[312115389,1705642245164,-575.27,0.00032876,2]
[312115391,1705642245173,-575.27,0.00032876,2]
[312115392,1705642245183,-500.0,0.00032876,2]
[312115394,1705642245192,-575.27,0.00032876,2]
[312115396,1705642245201,-575.27,0.00032876,2]
[312115397,1705642245212,-575.27,0.00032876,2]
[312115399,1705642245221,-575.27,0.00032876,2]
[312115400,1705642245231,-575.27,0.00032876,2]
[312115402,1705642245241,-575.27,0.00032876,2]
[312115404,1705642245250,-575.27,0.00032876,2]
[312115405,1705642245260,-575.27,0.00032876,2]
[312115406,1705642245269,-575.27,0.00032876,2]
[312115408,1705642245278,-575.3,0.00032876,2]
[312115409,1705642245287,-197.43911502,0.00032876,2]
[312115410,1705642245297,-500.0,0.00032876,2]
[312115411,1705642245306,-500.0,0.00032876,5]
[312115412,1705642245316,-510.8176252,0.00032876,2]
[312115413,1705642245325,-500.0,0.00032876,2]
[312115414,1705642245334,-246.09219212,0.00032876,2]
[312115415,1705642245343,-500.0,0.00032876,2]
[312115416,1705642245352,-500.0,0.00032876,2]
[312115417,1705642245362,-500.0,0.00032876,2]
[312115418,1705642245371,-500.0,0.00032876,2]
[312115419,1705642245380,-500.0,0.00032876,2]
[312115420,1705642245390,-536.54378971,0.00032876,2]
[312115421,1705642245399,-500.0,0.00032876,2]
[312115422,1705642245408,-504.60443629,0.00032876,2]
[312115423,1705642245418,-500.0,0.00032876,2]
[312115424,1705642245429,-968.28,0.00032876,2]
[312115425,1705642245440,-712.94,0.00032876,2]
[312115426,1705642245449,-500.0,0.00032876,2]
[312115427,1705642245458,-503.09188563,0.00032876,2]
[312115428,1705642245467,-500.0,0.00032876,2]
[312115429,1705642245478,-500.0,0.00032876,2]
[312115430,1705642245487,-627.14356209,0.00032876,2]
[312115431,1705642245496,-500.0,0.00032876,2]
[312115432,1705642245507,-500.0,0.00032876,2]
[312115433,1705642245517,-500.0,0.00032876,2]
[312115434,1705642245526,-882.02,0.00032876,2]
[312115435,1705642245536,-500.0,0.00032876,2]
[312115436,1705642245545,-500.0,0.00032876,2]
[312115437,1705642245555,-500.0,0.00032876,2]
[312115438,1705642245565,-500.0,0.00032876,2]
[312115439,1705642245575,-501.41665242,0.00032876,2]
[312115440,1705642245584,-500.0,0.00032876,2]
[312115441,1705642245593,-500.0,0.00032876,2]
[312115442,1705642245603,-500.0,0.00032876,2]
[312115443,1705642245613,-500.0,0.00032876,2]
[312115444,1705642245623,-500.0,0.00032876,2]
[312115445,1705642245632,-500.0,0.00032876,2]
[312115446,1705642245641,-500.0,0.00032876,2]
[312115447,1705642245652,-500.0,0.00032876,2]
[312115449,1705642245727,-500.0,0.00032876,2]
[312115451,1705642245737,-912.0,0.00032876,2]
[312115453,1705642245747,-1012.5,0.00032876,2]
[312115455,1705642245756,-1028.62,0.00032876,2]
[312115457,1705642245765,-508.39221343,0.00032876,2]
[312115458,1705642245775,-500.82985552,0.00032876,2]
[312115459,1705642245784,-500.0,0.00032876,2]
[312115461,1705642245793,-8065.62,0.00032876,2]
[312115462,1705642245802,-500.0,0.00032876,2]
[312115463,1705642245813,-810.73,0.00032876,2]
[312115464,1705642245822,-443.30040039,0.00032876,2]
[312115465,1705642245831,-500.0,0.00032876,2]
[312115466,1705642245840,-500.0,0.00032876,2]
[312115467,1705642245850,-500.0,0.00032876,2]
[312115468,1705642245858,-500.0,0.00032876,2]
[312115470,1705642245868,-500.0,0.00032876,2]
[312115472,1705642245877,-1980.19,0.00032876,2]
[312115473,1705642245887,-500.0,0.00032876,2]
[312115474,1705642245896,-500.0,0.00032876,2]
[312115475,1705642245905,-500.0,0.00032876,2]
[312115476,1705642245914,-535.12902412,0.00032876,2]
[312115478,1705642245923,-500.0,0.00032876,2]
[312115479,1705642245933,-5460.48,0.00032876,2]
[312115480,1705642245942,-500.0,0.00032876,2]
[312115481,1705642245952,-500.0,0.00032876,2]
[312115482,1705642245961,-330.77387985,0.00032876,2]
[312115483,1705642245970,-500.0,0.00032876,2]
[312115484,1705642245979,-500.0,0.00032876,2]
[312115485,1705642245989,-500.0,0.00032876,2]
[312115486,1705642245998,-500.0,0.00032876,2]
[312115487,1705642246008,-500.0,0.00032876,2]
[312115488,1705642246017,-500.0,0.00032876,2]
[312115489,1705642246027,-500.0,0.00032876,2]
[312115490,1705642246037,-500.0,0.00032876,2]
[312115491,1705642246046,-500.0,0.00032876,2]
[312115492,1705642246055,-500.53031747,0.00032876,2]
[312115493,1705642246066,-500.0,0.00032876,2]
[312115494,1705642246075,-500.0,0.00032876,2]
[312115495,1705642246085,-500.0,0.00032876,2]
[312115496,1705642246097,-500.0,0.00032876,2]
[312115497,1705642246106,-632.19134708,0.00032876,2]
[312115498,1705642246115,-500.0,0.00032876,2]
[312115499,1705642246125,-500.0,0.00032876,2]
[312115500,1705642246134,-504.89253781,0.00032876,2]
[312115501,1705642246143,-500.64880738,0.00032876,2]
[312115502,1705642246152,-220.59931933,0.00032876,2]
[312115503,1705642246162,-500.0,0.00032876,2]
[312115504,1705642246171,-500.0,0.00032876,2]
[312115505,1705642246180,-500.0,0.00032876,2]
[312115506,1705642246189,-510.43954278,0.00032876,2]
[312115507,1705642246198,-500.0,0.00032876,2]
[312115508,1705642246207,-506.81300677,0.00032876,2]
[312115509,1705642246216,-500.0,0.00032876,2]
[312115510,1705642246226,-504.17788797,0.00032876,2]
[312115511,1705642246235,-500.0,0.00032876,2]
[312115512,1705642246245,-500.0,0.00032876,2]
[312115513,1705642246254,-500.0,0.00032876,2]
[312115514,1705642246263,-500.0,0.00032876,2]
[312115515,1705642246272,-500.99613015,0.00032876,2]
[312115516,1705642246282,-500.0,0.00032876,2]
[312115517,1705642246292,-500.0,0.00032876,2]
[312115518,1705642246301,-500.0,0.00032876,2]
[312115519,1705642246311,-500.0,0.00032876,2]
[312115520,1705642246320,-500.0,0.00032876,2]
[312115521,1705642246330,-518.98152022,0.00032876,2]
[312115522,1705642246340,-506.5554029,0.00032876,2]
[312115523,1705642246348,-1729.78,0.00032876,2]
[312115524,1705642246358,-500.0,0.00032876,2]
[312115525,1705642246367,-500.0,0.00032876,2]
[312115526,1705642246377,-500.0,0.00032876,2]
[312115527,1705642246386,-505.83850922,0.00032876,2]
[312115528,1705642246395,-703.4,0.00032876,2]
[312115529,1705642246405,-502.48,0.00032876,2]
[312115530,1705642246414,-500.0,0.00032876,2]
[312115531,1705642246423,-500.0,0.00032876,2]
[312115532,1705642246436,-500.0,0.00032876,2]
[312115533,1705642246445,-500.0,0.00032876,2]
[312115534,1705642246456,-500.0,0.00032876,2]
[312115535,1705642246466,-502.20901624,0.00032876,2]
[312115536,1705642246476,-500.0,0.00032876,2]
[312115537,1705642246485,-500.0,0.00032876,2]
[312115539,1705642246495,-2573.61,0.00032876,2]
[312115541,1705642246505,-500.0,0.00032876,2]
[312115543,1705642246516,-500.0,0.00032876,2]
[312115545,1705642246525,-334.15306829,0.00032876,2]
[312115547,1705642246534,-500.0,0.00032876,2]
[312115549,1705642246543,-500.0,0.00032876,2]
[312115550,1705642246553,-469.635359,0.00032876,2]
[312115551,1705642246562,-500.0,0.00032876,2]
[312115552,1705642246571,-500.0,0.00032876,2]
[312115553,1705642246580,-625.55917196,0.00032876,2]
[312115554,1705642246590,-500.0,0.00032876,2]
[312115555,1705642246599,-2346.2,0.00032876,2]
[312115556,1705642246609,-500.0,0.00032876,2]
[312115557,1705642246618,-500.0,0.00032876,2]
[312115558,1705642246628,-500.0,0.00032876,2]
[312115559,1705642246637,-500.0,0.00032876,2]
[312115560,1705642246647,-500.0,0.00032876,2]
[312115561,1705642246656,-500.0,0.00032876,2]
[312115562,1705642246666,-502.9550057,0.00032876,2]
[312115563,1705642246675,-500.58497799,0.00032876,2]
[312115564,1705642246685,-500.0,0.00032876,2]
[312115565,1705642246694,-500.0,0.00032876,2]
[312115566,1705642246704,-2506.63,0.00032876,2]
[312115567,1705642246713,-500.0,0.00032876,2]
[312115568,1705642246723,-500.0,0.00032876,2]
[312115569,1705642246732,-502.14852127,0.00032876,2]
[312115570,1705642246742,-500.0,0.00032876,2]
[312115571,1705642246751,-500.0,0.00032876,2]
[312115572,1705642246761,-500.0,0.00032876,2]
[312115573,1705642246771,-501.13676936,0.00032876,2]
[312115574,1705642246781,-500.0,0.00032876,2]
[312115575,1705642246790,-763.21,0.00032876,2]
[312115576,1705642246800,-500.0,0.00032876,2]
[312115577,1705642246809,-500.0,0.00032876,2]
[312115578,1705642246819,-500.0,0.00032876,2]
[312115579,1705642246828,-500.0,0.00032876,2]
[312115580,1705642246837,-500.0,0.00032876,2]
[312115581,1705642246846,-428.00989318,0.00032876,2]
[312115582,1705642246855,-300.0,0.00032876,2]
[312115583,1705642246865,-256.88557354,0.00032876,2]
[312115584,1705642246874,-500.0,0.00032876,2]
[312115585,1705642246884,-500.0,0.00032876,2]
[312115586,1705642246894,-500.0,0.00032876,2]
[312115587,1705642246903,-501.4348099,0.00032876,2]
[312115588,1705642246913,-500.0,0.00032876,2]
[312115589,1705642246923,-500.0,0.00032876,2]
[312115590,1705642246932,-460.93815917,0.00032876,2]
[312115591,1705642246941,-500.0,0.00032876,2]
[312115592,1705642246950,-375.59993019,0.00032876,2]
[312115593,1705642246960,-500.0,0.00032876,2]
[312115594,1705642246969,-500.0,0.00032876,2]
[312115595,1705642246979,-556.26137122,0.00032876,2]
[312115596,1705642246988,-500.0,0.00032876,2]
[312115597,1705642246997,-500.93177506,0.00032876,2]
[312115598,1705642247006,-500.88805801,0.00032876,2]
[312115599,1705642247016,-568.40930442,0.00032876,2]
[312115600,1705642247025,-500.0,0.00032876,2]
[312115601,1705642247035,-483.06166874,0.00032876,7]
[312115602,1705642247045,-500.0,0.00032876,7]
[312115603,1705642247055,-500.0,0.00032876,7]
[312115604,1705642247065,-170.27823278,0.00032876,7]
[312115605,1705642247074,-547.16325405,0.00032876,7]
[312115606,1705642247084,-601.28150575,0.00032876,7]
[312115607,1705642247094,-500.0,0.00032876,7]
[312115608,1705642247162,-500.0,0.00032876,7]
[312115609,1705642247172,-500.0,0.00032876,7]
[312115610,1705642247181,-500.0,0.00032876,7]
[312115611,1705642247191,-500.0,0.00032876,7]
[312115612,1705642247200,-500.0,0.00032876,7]
[312115613,1705642247211,-500.0,0.00032876,2]
[312115614,1705642247220,-500.0,0.00032876,7]
[312115615,1705642247230,-263.46961415,0.00032876,7]
[312115616,1705642247239,-500.0,0.00032876,2]
[312115617,1705642247249,-500.0,0.00032876,7]
[312115618,1705642247258,-500.0,0.00032876,7]
[312115619,1705642247268,-500.0,0.00032876,7]
[312115620,1705642247277,-500.0,0.00032876,7]
[312115621,1705642247286,-500.0,0.00032876,7]
[312115622,1705642247297,-500.0,0.00032876,7]
[312115623,1705642247306,-500.0,0.00032876,7]
[312115624,1705642247315,-500.0,0.00032876,7]
[312115625,1705642247324,-500.0,0.00032876,2]
[312115626,1705642247334,-500.0,0.00032876,7]
[312115627,1705642247344,-155.0,0.00032877,2]
[312115628,1705642247353,-306.63663,0.00032999,2]
[312115629,1705642247363,-6762.26543772,0.00033,4]
[312115630,1705642247372,-386.32476631,0.00033,2]
[312115631,1705642247382,-150.0,0.00033,4]
[312115632,1705642247391,-170.0,0.00033,2]
[312115633,1705642247401,-172.0,0.00033,2]
[312115634,1705642247411,-153.95835482,0.00033111,7]
[312115635,1705642247421,-500.0,0.0003315,3]
[312115636,1705642247432,-521.38601763,0.0003315,3]
[312115637,1705642247443,-500.0,0.0003315,3]
[312115638,1705642247452,-202.65450831,0.0003315,3]
[312115639,1705642247462,-500.0,0.0003315,3]
[312115640,1705642247472,-500.0,0.0003315,3]
[312115641,1705642247482,-512.03505382,0.0003315,3]
[312115642,1705642247491,-500.0,0.0003315,3]
[312115643,1705642247501,-500.0,0.0003315,3]
[312115644,1705642247512,-500.0,0.0003315,3]
[312115645,1705642247523,-500.0,0.0003315,3]
[312115646,1705642247533,-501.49907098,0.0003315,3]
[312115647,1705642247543,-597.89688025,0.0003315,3]
[312115648,1705642247553,-500.0,0.0003315,3]
[312115649,1705642247565,-500.0,0.0003315,3]
[312115650,1705642247574,-500.0,0.0003315,3]
[312115651,1705642247584,-500.61949666,0.0003315,3]
[312115652,1705642247594,-509.90109657,0.0003315,3]
[312115653,1705642247604,-502.46942501,0.0003315,3]
[312115654,1705642247614,-500.0,0.0003315,3]
[312115655,1705642247623,-500.0,0.0003315,3]
[312115656,1705642247633,-500.0,0.0003315,3]
[312115657,1705642247643,-505.63003391,0.0003315,3]
[312115658,1705642247653,-502.00456235,0.0003315,3]
[312115659,1705642247662,-558.98499272,0.0003315,3]
[312115660,1705642247672,-500.0,0.0003315,3]
[312115661,1705642247681,-500.0,0.0003315,3]
[312115662,1705642247691,-500.0,0.0003315,3]
[312115663,1705642247701,-502.35871173,0.0003315,3]
[312115664,1705642247710,-500.0,0.0003315,3]
[312115665,1705642247720,-500.0,0.0003315,3]
[312115666,1705642247729,-500.0,0.0003315,3]
[312115667,1705642247739,-500.0,0.0003315,3]
[312115668,1705642247748,-500.0,0.0003315,3]
[312115669,1705642247758,-500.87491011,0.0003315,3]
[312115670,1705642247767,-165.93033742,0.0003315,3]
[312115671,1705642247776,-500.76364676,0.0003315,3]
[312115672,1705642247785,-500.0,0.0003315,3]
[312115673,1705642247794,-500.0,0.0003315,3]
[312115674,1705642247804,-500.0,0.0003315,3]
[312115675,1705642247813,-500.0,0.0003315,3]
[312115676,1705642247822,-500.0,0.0003315,3]
[312115677,1705642247832,-500.0,0.0003315,3]
[312115678,1705642247841,-500.0,0.0003315,3]
[312115679,1705642247850,-500.0,0.0003315,3]
[312115680,1705642247860,-500.0,0.0003315,3]
[312115681,1705642247870,-364.49209463,0.0003315,3]
[312115682,1705642247880,-500.0,0.0003315,3]
[312115683,1705642247890,-500.0,0.0003315,3]
[312115684,1705642247899,-500.0,0.0003315,3]
[312115685,1705642247908,-500.0,0.0003315,3]
[312115686,1705642247918,-500.0,0.0003315,3]
[312115687,1705642247928,-500.0,0.0003315,3]
[312115688,1705642247937,-500.0,0.0003315,3]
[312115689,1705642247946,-500.0,0.0003315,3]
[312115690,1705642247956,-500.49039529,0.0003315,3]
[312115691,1705642247966,-500.0,0.0003315,3]
[312115692,1705642247975,-500.0,0.0003315,3]
[312115693,1705642247985,-500.0,0.0003315,3]
[312115694,1705642247994,-523.89688111,0.0003315,2]
[312115695,1705642248004,-500.0,0.0003315,3]
[312115696,1705642248013,-500.0,0.0003315,3]
[312115697,1705642248023,-500.0,0.0003315,3]
[312115698,1705642248032,-500.0,0.0003315,3]
[312115699,1705642248042,-500.0,0.0003315,3]
[312115700,1705642248051,-500.0,0.0003315,3]
[312115701,1705642248060,-500.0,0.0003315,3]
[312115702,1705642248070,-504.20658948,0.0003315,3]
[312115703,1705642248080,-500.0,0.0003315,3]
[312115704,1705642248090,-500.0,0.0003315,3]
[312115705,1705642248099,-500.0,0.0003315,14]
[312115706,1705642248109,-595.41759042,0.0003315,3]
[312115707,1705642248118,-500.0,0.0003315,3]
[312115708,1705642248130,-500.0,0.0003315,3]
[312115709,1705642248139,-500.0,0.0003315,3]
[312115710,1705642248148,-500.0,0.0003315,3]
[312115711,1705642248158,-187.46119069,0.0003315,3]
[312115712,1705642248167,-500.0,0.0003315,3]
[312115713,1705642248176,-635.96694651,0.0003315,3]
[312115714,1705642248185,-507.52266502,0.0003315,3]
[312115715,1705642248194,-500.0,0.0003315,3]
[312115716,1705642248203,-265.14928865,0.0003315,3]
[312115717,1705642248213,-500.0,0.0003315,3]
[312115718,1705642248222,-504.88440796,0.0003315,3]
[312115719,1705642248231,-500.0,0.0003315,3]
[312115720,1705642248240,-500.0,0.0003315,3]
[312115721,1705642248249,-500.0,0.0003315,3]
[312115722,1705642248258,-501.76139814,0.0003315,3]
[312115723,1705642248267,-500.0,0.0003315,3]
[312115724,1705642248276,-500.0,0.0003315,3]
[312115725,1705642248285,-533.17519764,0.0003315,3]
[312115726,1705642248294,-500.0,0.0003315,3]
[312115727,1705642248304,-500.0,0.0003315,3]
[312115728,1705642248313,-500.0,0.0003315,3]
[312115729,1705642248322,-296.75355326,0.0003315,3]
[312115730,1705642248332,-500.0,0.0003315,3]
[312115731,1705642248341,-502.48230786,0.0003315,3]
[312115732,1705642248350,-501.32970261,0.0003315,3]
[312115733,1705642248359,-500.0,0.0003315,3]
[312115734,1705642248369,-500.0,0.0003315,3]
[312115735,1705642248378,-500.0,0.0003315,3]
[312115736,1705642248387,-501.38709058,0.0003315,3]
[312115737,1705642248396,-500.56555605,0.0003315,3]
[312115738,1705642248405,-1000.0,0.0003315,2]
[312115739,1705642248414,-504.49546555,0.0003315,3]
[312115740,1705642248482,-500.0,0.0003315,3]
[312115741,1705642248492,-402.31398603,0.0003315,3]
[312115742,1705642248502,-500.0,0.0003315,3]
[312115743,1705642248514,-501.48231904,0.0003315,3]
[312115744,1705642248524,-500.0,0.0003315,3]
[312115745,1705642248533,-500.0,0.0003315,3]
[312115746,1705642248542,-500.0,0.0003315,3]
[312115747,1705642248551,-500.0,0.0003315,3]
[312115748,1705642248561,-500.0,0.0003315,3]
[312115749,1705642248570,-500.80353804,0.0003315,3]
[312115750,1705642248580,-500.0,0.0003315,3]
[312115751,1705642248589,-581.11900681,0.0003315,3]
[312115752,1705642248599,-500.0,0.0003315,3]
[312115753,1705642248608,-503.69616097,0.0003315,3]
[312115754,1705642248617,-500.0,0.0003315,3]
[312115755,1705642248626,-500.0,0.0003315,3]
[312115756,1705642248635,-500.0,0.0003315,3]
[312115757,1705642248645,-391.31701219,0.0003315,3]
[312115758,1705642248654,-500.0,0.0003315,3]
[312115759,1705642248663,-500.0,0.0003315,3]
[312115760,1705642248672,-503.18903626,0.0003315,3]
[312115761,1705642248681,-500.0,0.0003315,3]
[312115762,1705642248690,-500.0,0.0003315,3]
[312115763,1705642248699,-500.0,0.0003315,3]
[312115764,1705642248708,-501.4314439,0.0003315,3]
[312115765,1705642248717,-505.84684229,0.0003315,3]
[312115766,1705642248727,-500.0,0.0003315,3]
[312115767,1705642248736,-503.42884817,0.0003315,3]
[312115768,1705642248745,-500.0,0.0003315,3]
[312115769,1705642248755,-500.98296989,0.0003315,3]
[312115770,1705642248764,-500.0,0.0003315,3]
[312115771,1705642248774,-500.0,0.0003315,3]
[312115772,1705642248784,-500.0,0.0003315,3]
[312115773,1705642248793,-500.0,0.0003315,3]
[312115774,1705642248802,-1000.0,0.0003315,2]
[312115775,1705642248813,-500.0,0.0003315,3]
[312115776,1705642248822,-503.28476532,0.0003315,3]
[312115777,1705642248831,-150.0,0.0003315,3]
[312115778,1705642248841,-200.0,0.0003315,3]
[312115779,1705642248851,-500.0,0.0003315,3]
[312115780,1705642248860,-502.03648603,0.0003315,3]
[312115781,1705642248869,-500.0,0.0003315,3]
[312115782,1705642248878,-293.65379672,0.0003315,3]
[312115783,1705642248887,-500.0,0.0003315,3]
[312115784,1705642248896,-500.5698228,0.0003315,3]
[312115785,1705642248906,-500.0,0.0003315,3]
[312115786,1705642248915,-501.03488795,0.0003315,3]
[312115787,1705642248924,-502.28677039,0.0003315,3]
[312115788,1705642248933,-500.0,0.0003315,3]
[312115789,1705642248942,-502.88614467,0.0003315,3]
[312115790,1705642248952,-500.0,0.0003315,3]
[312115791,1705642248961,-500.0,0.0003315,3]
[312115792,1705642248970,-500.0,0.0003315,3]
[312115793,1705642248979,-502.98099743,0.0003315,3]
[312115794,1705642248989,-500.76349209,0.0003315,3]
[312115795,1705642248998,-500.0,0.0003315,3]
[312115796,1705642249008,-499.25770796,0.0003315,3]
[312115797,1705642249017,-500.0,0.0003315,3]
[312115798,1705642249026,-505.72761755,0.0003315,3]
[312115799,1705642249036,-500.0,0.0003315,3]
[312115800,1705642249045,-500.0,0.0003315,3]
[312115801,1705642249054,-500.0,0.0003315,3]
[312115802,1705642249066,-500.0,0.0003315,3]
[312115803,1705642249078,-500.0,0.0003315,3]
[312115804,1705642249087,-500.0,0.0003315,3]
[312115805,1705642249098,-500.0,0.0003315,3]
[312115806,1705642249109,-500.0,0.0003315,3]
[312115807,1705642249120,-500.0,0.0003315,3]
[312115808,1705642249131,-501.94234063,0.0003315,3]
[312115809,1705642249141,-500.0,0.0003315,3]
[312115810,1705642249152,-500.0,0.0003315,3]
[312115811,1705642249163,-500.82902477,0.0003315,3]
[312115812,1705642249173,-500.0,0.0003315,3]
[312115813,1705642249183,-502.99620188,0.0003315,3]
[312115814,1705642249193,-500.0,0.0003315,3]
[312115815,1705642249203,-500.0,0.0003315,3]
[312115816,1705642249213,-613.99404938,0.0003315,3]
[312115817,1705642249223,-500.0,0.0003315,3]
[312115818,1705642249233,-500.0,0.0003315,3]
[312115819,1705642249242,-503.20623737,0.0003315,3]
[312115820,1705642249252,-500.0,0.0003315,3]
[312115821,1705642249262,-627.68,0.0003315,3]
[312115822,1705642249272,-500.0,0.0003315,3]
[312115823,1705642249282,-500.0,0.0003315,3]
[312115824,1705642249291,-500.0,0.0003315,3]
[312115825,1705642249300,-500.0,0.0003315,3]
[312115826,1705642249309,-500.0,0.0003315,3]
[312115827,1705642249325,-1288.13,0.0003315,3]
[312115828,1705642249334,-500.0,0.0003315,3]
[312115829,1705642249343,-502.10655044,0.0003315,5]
[312115830,1705642249354,-500.0,0.0003315,3]
[312115831,1705642249363,-500.0,0.0003315,3]
[312115832,1705642249372,-500.0,0.0003315,3]
[312115833,1705642249382,-500.0,0.0003315,3]
[312115834,1705642249391,-501.52733397,0.0003315,3]
[312115835,1705642249400,-509.14299081,0.0003315,3]
[312115836,1705642249410,-500.0,0.0003315,3]
[312115837,1705642249419,-968.28,0.0003315,3]
[312115838,1705642249430,-712.94,0.0003315,3]
[312115839,1705642249443,-500.0,0.0003315,3]
[312115840,1705642249452,-500.0,0.0003315,3]
[312115841,1705642249461,-500.0,0.0003315,3]
[312115842,1705642249472,-500.0,0.0003315,3]
[312115843,1705642249481,-234.58010768,0.0003315,3]
[312115844,1705642249490,-882.02,0.0003315,3]
[312115845,1705642249499,-506.24983584,0.0003315,3]
[312115846,1705642249509,-501.64392268,0.0003315,3]
[312115847,1705642249519,-500.0,0.0003315,3]
[312115848,1705642249529,-500.0,0.0003315,3]
[312115849,1705642249538,-503.45371176,0.0003315,3]
[312115850,1705642249548,-500.0,0.0003315,3]
[312115851,1705642249557,-500.0,0.0003315,3]
[312115852,1705642249568,-500.0,0.0003315,3]
[312115853,1705642249577,-1012.5,0.0003315,3]
[312115854,1705642249586,-912.0,0.0003315,3]
[312115855,1705642249595,-1028.62,0.0003315,3]
[312115856,1705642249605,-500.0,0.0003315,3]
[312115857,1705642249614,-8065.62,0.0003315,3]
[312115858,1705642249623,-500.0,0.0003315,3]
[312115859,1705642249632,-810.73,0.0003315,3]
[312115860,1705642249642,-158.37445492,0.0003315,3]
[312115861,1705642249651,-1980.19,0.0003315,3]
[312115862,1705642249716,-501.38753386,0.0003315,3]